fUST/lending_fUST_20260123
["ID","MTS","AMOUNT","RATE_DAILY","PERIOD"]
[403085783,1769141438756,-2148.0,0.00016817,2]
[403085785,1769141438765,-1368.0,0.00016817,2]
[403085787,1769141438774,-629.0,0.00016817,2]
[403085789,1769141438783,-500.0,0.00016818,2]
[403085791,1769141438791,-500.0,0.00016818,2]
[403085793,1769141438800,-266.59077395,0.00016818,2]
[403085819,1769141439039,-233.40922605,0.00016818,2]
[403085821,1769141439049,-500.0,0.00016818,2]
[403085823,1769141439058,-225.83488805,0.00016886,2]
[403085825,1769141439067,-715.0,0.00016897,2]
[403085827,1769141439076,-201.624,0.00016897,2]
[403085829,1769141439088,-420.24,0.00016897,2]
[403085831,1769141439097,-339.14365972,0.00016955,2]
[403085854,1769141440071,-250.77106545,0.0001475,2]
[403085855,1769141440087,-4749.22893455,0.0001475,2]
[403085856,1769141440098,-160.85634028,0.00016955,2]
[403085857,1769141440108,-222.78172356,0.00016955,2]
[403085858,1769141440118,-500.0,0.00016955,2]
[403085859,1769141440128,-180.0,0.00016955,2]
[403085860,1769141440138,-500.0,0.00017092,2]
[403085861,1769141440147,-500.0,0.00017092,2]
[403085862,1769141440156,-150.277,0.00017092,2]
[403085863,1769141440166,-500.0,0.00017229,2]
[403085864,1769141440175,-500.0,0.00017229,2]
[403085865,1769141440185,-300.55554664,0.00017342,2]
[403085866,1769141440195,-500.0,0.00017366,2]
[403085867,1769141440204,-500.0,0.00017366,2]
[403085868,1769141440214,-340.494,0.00017374,2]
[403085869,1769141440224,-321.85877864,0.00017496,25]
[403085870,1769141440234,-500.0,0.00017503,2]
[403085871,1769141440244,-500.0,0.00017503,2]
[403085872,1769141440254,-500.0,0.0001764,2]
[403085873,1769141440264,-500.0,0.00017777,2]
[403085874,1769141440273,-434.0,0.00017914,2]
[403085875,1769141440283,-369.38228831,0.00018189,2]
[403085876,1769141440294,-223.68255462,0.00018195,32]
[403085877,1769141440303,-321.85877864,0.00018195,32]
[403085878,1769141440314,-295.6523248,0.00018543,2]
[403085879,1769141440325,-10737.02624014,0.00018685,2]
[403085880,1769141440334,-231.0,0.000187,2]
[403085881,1769141440344,-321.85877864,0.00018894,40]
[403085882,1769141440353,-500.0,0.00019178,2]
[403085883,1769141440363,-500.0,0.00019178,2]
[403085884,1769141440373,-500.0,0.00019178,2]
[403085885,1769141440382,-500.0,0.00019178,2]
[403085886,1769141440392,-269.8009179,0.00019372,2]
[403085887,1769141440401,-223.68255462,0.00019593,48]
[403085888,1769141440411,-321.85877864,0.00019593,48]
[403085889,1769141440420,-261.83458023,0.00019636,2]
[403085890,1769141440430,-390.49473512,0.0001977,2]
[403085891,1769141440440,-714.082,0.00019817,2]
[403085892,1769141440449,-629.0,0.00019817,2]
[403085893,1769141440459,-385.378,0.00019897,2]
[403085894,1769141440468,-178.0,0.00019897,2]
[403085895,1769141440477,-417.0,0.00019897,2]
[403085896,1769141440486,-500.0,0.00019999,2]
[403085897,1769141440495,-418.27112058,0.00020189,2]
[403085898,1769141440504,-180.0360072,0.00020291,2]
[403085899,1769141440513,-289.76740621,0.00020292,56]
[403085900,1769141440522,-260.33010918,0.00020292,56]
[403085901,1769141440531,-321.85877864,0.00020292,56]
[403085902,1769141440540,-308.34390618,0.0002031,2]
[403085903,1769141440549,-295.6523248,0.00020634,2]
[403085904,1769141440559,-2819.88,0.00020699,2]
[403085905,1769141440568,-171.33910745,0.000207,2]
[403085906,1769141440577,-196.28260893,0.000207,2]
[403085907,1769141440587,-936.47490948,0.000207,2]
[403085908,1769141440602,-224.11164834,0.000207,2]
[403085909,1769141440620,-183.04868538,0.000207,2]
[403085910,1769141440630,-446.27969728,0.00020734,2]
[403085911,1769141440639,-1041.66666667,0.00020743,2]
[403085912,1769141440648,-369.09,0.00020818,3]
[403085913,1769141440658,-184.54,0.00020818,3]
[403085914,1769141440667,-553.66,0.00020818,3]
[403085915,1769141440676,-10737.02624014,0.00020828,2]
[403085916,1769141440685,-500.0,0.00020879,2]
[403085917,1769141440694,-171.33910745,0.000209,2]
[403085918,1769141440704,-196.28260893,0.000209,2]
[403085919,1769141440715,-936.47490948,0.000209,2]
[403085920,1769141440725,-183.04868538,0.000209,2]
[403085921,1769141440735,-223.68255462,0.00020991,63]
[403085922,1769141440744,-321.85877864,0.00020991,63]
[403085923,1769141440755,-150.0,0.00021,2]
[403085924,1769141440764,-507.8145,0.00021051,2]
[403085925,1769141440775,-507.8145,0.00021051,3]
[403085926,1769141440784,-507.8145,0.00021051,4]
[403085927,1769141440793,-200.0,0.00021051,2]
[403085928,1769141440802,-171.33910745,0.000211,2]
[403085929,1769141440811,-936.47490948,0.000211,2]
[403085930,1769141440820,-183.04868538,0.000211,2]
[403085931,1769141440829,-171.33910745,0.000214,2]
[403085932,1769141440838,-936.47490948,0.000214,2]
[403085933,1769141440847,-183.04868538,0.000214,2]
[403085934,1769141440857,-936.47490948,0.000216,2]
[403085935,1769141440866,-321.85877864,0.00021689,71]
[403085936,1769141440875,-151.0,0.00021949,2]
[403085937,1769141440884,-738.18,0.00022188,3]
[403085938,1769141440893,-369.08,0.00022188,3]
[403085939,1769141440902,-467.15995286,0.00022189,2]
[403085940,1769141440912,-223.68255462,0.00022388,79]
[403085941,1769141440921,-321.85877864,0.00022388,79]
[403085942,1769141440930,-948.5,0.0002242,10]
[403085943,1769141440939,-507.8145,0.00022465,2]
[403085944,1769141440948,-507.8145,0.00022465,3]
[403085945,1769141440958,-484.371,0.00022465,4]
[403085946,1769141440967,-151.0,0.0002263,2]
[403085947,1769141440976,-178.0,0.00022897,2]
[403085948,1769141440985,-417.0,0.00022897,2]
[403085949,1769141440995,-10737.02624014,0.00022971,2]
[403085950,1769141441005,-164.0,0.00023,7]
[403085951,1769141441018,-204.34860569,0.00023001,3]
[403085952,1769141441028,-321.85877864,0.00023087,86]
[403085953,1769141441038,-500.0,0.00023091,2]
[403085954,1769141441047,-2203.54288095,0.00023218,2]
[403085955,1769141441059,-164.0,0.00023288,7]
[403085956,1769141441069,-151.0,0.00023311,2]
[403085957,1769141441078,-295.76272487,0.0002347,3]
[403085958,1769141441088,-160.0,0.00023771,5]
[403085959,1769141441097,-223.68255462,0.00023786,94]
[403085960,1769141441107,-321.85877864,0.00023786,94]
[403085961,1769141441116,-500.0,0.00023899,2]
[403085962,1769141441125,-500.0,0.00023899,2]
[403085963,1769141441135,-500.0,0.00023899,2]
[403085964,1769141441144,-500.0,0.00023899,2]
[403085965,1769141441153,-508.81385736,0.00023899,2]
[403085966,1769141441163,-17962.15098394,0.000239,2]
[403085967,1769141441175,-650.76259487,0.000239,2]
[403085968,1769141441186,-5510.08642875,0.000239,2]
[403085988,1769141443164,-11868.77024188,0.000239,2]
[403086000,1769141446046,-4042.6665375,0.000239,2]
[403086001,1769141446058,-5352.66581445,0.000239,2]
[403086002,1769141463542,333.61593307,0.00013273,2]
[403086003,1769141477131,500.0,0.00013699,2]
[403086004,1769141479115,193.1504809,0.00013273,2]
[403086005,1769141479136,306.8495191,0.00013273,2]
[403086006,1769141479187,1001.77941754,0.00013821,2]
[403086008,1769141502132,5141.825,0.00013897,2]
[403086012,1769141530975,500.0,0.00013273,2]
[403086013,1769141531038,1000.0,0.00013821,2]
[403086014,1769141532591,500.0,0.00013699,2]
[403086015,1769141535631,300.0,0.00013673,2]
[403086016,1769141541924,300.0,0.00013892,2]
[403086017,1769141584276,160.71072136,0.00013699,2]
[403086018,1769141600812,505.66602925,0.00013699,2]
[403086019,1769141650317,283.17931275,0.00013273,2]
[403086020,1769141650342,216.82068725,0.00013273,2]
[403086021,1769141651292,500.0,0.00013699,2]
[403086022,1769141654766,304.01066955,0.00013673,2]
[403086023,1769141737932,8979.1786432,0.00013892,2]
[403086024,1769141737953,10000.01,0.00013892,2]
[403086025,1769141737975,10000.01,0.00013892,2]
[403086026,1769141748540,-330.10752351,0.00013892,2]
[403086027,1769141750141,-320.26960086,0.00013892,2]
[403086028,1769141752292,-419.66449406,0.00013892,2]
[403086029,1769141755774,-367.28380367,0.00013892,2]
[403086030,1769141757144,-261.97610125,0.00013892,2]
[403086031,1769141758719,-151.85,0.00013892,2]
[403086032,1769141760890,-170.22947785,0.00013892,2]
[403086033,1769141771335,500.0,0.00013699,2]
[403086034,1769141774368,194.31,8.75e-05,2]
[403086035,1769141774771,388.62,9.546e-05,2]
[403086036,1769141775154,582.94,0.00010341,2]
[403086037,1769141775573,777.25,0.00011137,2]
[403086038,1769141776122,971.56,0.00011932,2]
[403086039,1769141777051,1165.87,0.00012728,2]
[403086040,1769141778115,1360.19,0.00013523,2]
[403086041,1769141827391,472.0,0.00013699,2]
[403086042,1769141842718,500.0,0.00013273,2]
[403086043,1769141847882,-1000.0,0.00013821,2]
[403086044,1769141849414,5000.0,0.00013821,2]
[403086045,1769141853238,264.21,8.686e-05,2]
[403086046,1769141853633,528.43,9.475e-05,2]
[403086047,1769141854035,792.64,0.00010265,2]
[403086048,1769141854591,1056.86,0.00011055,2]
[403086049,1769141854832,357.87,0.00011844,2]
[403086050,1769141854855,963.2,0.00011844,2]
[403086051,1769141855234,1585.29,0.00012634,2]
[403086052,1769141855777,1849.5,0.00013423,2]
[403086053,1769141871722,5000.0,0.00013821,2]
[403086054,1769141893725,500.0,0.00013699,2]
[403086055,1769141895057,102.02,0.00013821,2]
[403086056,1769141895081,4897.98,0.00013821,2]
[403086057,1769141903376,5000.0,0.00013821,2]
[403086058,1769141911397,102.03,0.00013821,2]
[403086059,1769141911421,4897.97,0.00013821,2]
[403086060,1769141920296,5000.0,0.00013821,2]
[403086061,1769141930611,102.04,8.684e-05,2]
[403086062,1769141930632,145.56,8.684e-05,2]
[403086063,1769141931016,495.2,9.474e-05,2]
[403086064,1769141931733,742.79,0.00010263,2]
[403086065,1769141932132,990.39,0.00011053,2]
[403086066,1769141932540,1237.99,0.00011842,2]
[403086067,1769141932942,1485.59,0.00012632,2]
[403086068,1769141933354,1733.19,0.00013421,2]
[403086069,1769141935933,1216.8179495,0.00013821,2]
[403086070,1769141943783,1952.4820505,0.00013821,2]
[403086071,1769141943806,3047.5179495,0.00013821,2]
[403086072,1769141954924,500.0,0.00013699,2]
[403086074,1769141966591,5000.0,0.00013821,2]
[403086075,1769141989444,1452.4920505,0.00013821,2]
[403086076,1769141996189,-301.46,0.00013821,2]
[403086077,1769141998844,-170.89339726,0.00013821,2]
[403086078,1769142001730,-302.60827705,0.00013821,2]
[403086079,1769142004526,170.89339726,0.00013812,2]
[403086080,1769142007413,500.0,0.00013273,2]
[403086081,1769142009565,159.38,8.68e-05,2]
[403086082,1769142009981,318.76,9.47e-05,2]
[403086083,1769142010892,478.14,0.00010259,2]
[403086084,1769142011326,637.53,0.00011048,2]
[403086085,1769142011728,796.91,0.00011837,2]
[403086086,1769142012130,956.29,0.00012626,2]
[403086087,1769142012693,1115.67,0.00013415,2]
[403086088,1769142015181,500.0,0.00013699,2]
[403086089,1769142027106,302.60827705,0.00013812,2]
[403086090,1769142065616,500.0,0.00013273,2]
[403086091,1769142065654,500.0,0.00013273,2]
[403086092,1769142069385,495.69438648,0.00012212,2]
[403086093,1769142087852,205.17,9.476e-05,2]
[403086094,1769142088122,307.75,0.00010266,2]
[403086095,1769142088509,410.33,0.00011055,2]
[403086096,1769142088914,512.92,0.00011845,2]
[403086097,1769142089326,615.5,0.00012635,2]
[403086098,1769142089718,516.46393921,0.00013424,2]
[403086099,1769142089740,201.62606079,0.00013424,2]
[403086100,1769142096447,9798.38393921,0.00013284,2]
[403086101,1769142096468,9490.03789839,0.00013284,2]
[403086102,1769142134102,500.0,0.00013699,2]
[403086103,1769142167216,9.97210161,0.00010277,2]
[403086104,1769142167239,192.02789839,0.00010277,2]
[403086105,1769142167637,269.33,0.00011068,2]
[403086106,1769142168038,336.66,0.00011858,2]
[403086107,1769142168432,403.99,0.00012649,2]
[403086108,1769142168815,471.33,0.0001344,2]
[403086109,1769142184805,5000.0,0.00013812,2]
[403086110,1769142207071,5000.0,0.00013812,2]
[403086111,1769142230836,0.01,0.00013812,2]
[403086112,1769142230857,4999.99,0.00013812,2]
[403086114,1769142242396,198.91,0.00011067,2]
[403086115,1769142242830,248.63,0.00011857,2]
[403086116,1769142243739,298.36,0.00012648,2]
[403086117,1769142244166,348.09,0.00013438,2]
[403086118,1769142244345,500.0,0.00013699,2]
[403086119,1769142253225,2785.24763716,0.00013812,2]
[403086120,1769142253301,500.0,0.00013699,2]
[403086121,1769142275399,120.78236284,0.00013812,2]
[403086122,1769142275421,3879.21763716,0.00013812,2]
[403086123,1769142281536,300.58801214,0.00011681,2]
[403086124,1769142298831,4361.1303665,0.00013812,2]
[403086125,1769142313571,179.01,0.00011863,2]
[403086126,1769142313997,214.82,0.00012654,2]
[403086127,1769142314443,250.62,0.00013445,2]
[403086130,1769142322221,814.6239842,0.00013812,2]
[403086131,1769142322246,2056.63780429,0.00013812,2]
[403086133,1769142325319,782.921521,0.00013699,2]
[403086140,1769142365640,508.72244162,0.00013699,2]
[403086144,1769142374962,500.0,0.00013699,2]
[403086151,1769142380229,1000.0,0.00013699,2]
[403086156,1769142387753,4000.0,0.00013812,2]
[403086163,1769142410987,1151.72823309,0.00013812,2]
[403086164,1769142411010,848.28176691,0.00013812,2]
[403086166,1769142423527,500.0,0.00013273,2]
[403086167,1769142430886,-300.0,0.0001382,2]
[403086168,1769142454183,165.61,0.00012632,2]
[403086169,1769142454591,193.21,0.00013421,2]
[403086170,1769142471804,9041.19,0.00012,5]
[403086171,1769142471827,10000.01,0.00012,5]
[403086172,1769142471848,9162.51470906,0.00012,5]
[403086173,1769142476535,837.49529094,0.0001382,2]
[403086174,1769142476559,662.49470906,0.0001382,2]
[403086175,1769142482362,300.0,0.0001382,2]
[403086176,1769142483522,317.82070122,0.00013273,2]
[403086177,1769142487385,537.55,0.00012329,2]
[403086178,1769142487506,3524.04908785,0.000125,2]
[403086179,1769142490286,500.0,0.00013699,2]
[403086180,1769142500097,500.0,0.00013699,2]
[403086181,1769142511664,225.73654505,0.0001382,2]
[403086182,1769142511691,337.22416053,0.0001382,2]
[403086183,1769142511724,388.35223531,0.0001382,2]
[403086187,1769142521018,396.37075578,0.00011681,2]
[403086189,1769142522450,336.8,0.00010227,2]
[403086190,1769142522844,673.6,0.00011157,2]
[403086191,1769142523277,1010.4,0.00012087,2]
[403086192,1769142523695,289.6118052,0.00013016,2]
[403086193,1769142523722,1057.5881948,0.00013016,2]
[403086194,1769142538608,169.68,0.00012329,2]
[403086195,1769142542940,300.0,0.0001382,2]
[403086196,1769142543263,3361.21646325,0.0001382,2]
[403086197,1769142544266,532.9557522,0.00013699,2]
[403086198,1769142557018,500.0,0.00013273,2]
[403086199,1769142559230,175.34,0.00012329,2]
[403086200,1769142560459,500.0,0.00013273,2]
[403086201,1769142566042,1638.78353675,0.0001382,2]
[403086202,1769142569643,876.72,0.00012329,2]
[403086203,1769142587742,496.6189267,0.00012976,2]
[403086204,1769142602491,297.75,0.00011038,2]
[403086205,1769142602785,93.3571263,0.0001382,2]
[403086206,1769142602810,206.6428737,0.0001382,2]
[403086207,1769142602927,595.51,0.00012042,2]
[403086208,1769142603554,893.26,0.00013045,2]
[403086209,1769142603590,500.0,0.00013273,2]
[403086210,1769142603618,500.0,0.00013273,2]
[403086211,1769142603828,500.0,0.00013273,2]
[403086212,1769142603946,500.0,0.00013699,2]
[403086213,1769142604140,433.74846664,0.00013699,2]
[403086215,1769142608109,1151.0,0.0001382,2]
[403086216,1769142614467,500.0,0.00013699,2]
[403086410,1769142633650,-310.4360218,0.0001382,2]
[403086447,1769142638135,-189.5639782,0.0001382,2]
[403086448,1769142638145,-176.66355274,0.0001382,2]
[403086449,1769142638154,-234.26276404,0.0001382,2]
[403086450,1769142638163,-899.91557516,0.00013821,2]
[403086451,1769142638172,-499.99,0.00013821,2]
[403086452,1769142638181,-700.0,0.00013821,2]
[403086453,1769142638191,-853.46653413,0.00013821,2]
[403086454,1769142638200,-1000.0,0.00013821,2]
[403086455,1769142638209,-1000.0,0.00013821,2]
[403086457,1769142638218,-1007.22843233,0.00013821,2]
[403086459,1769142638228,-1055.78030037,0.00013821,2]
[403086461,1769142638237,-529.67962375,0.00013821,2]
[403086463,1769142638246,-239.47707311,0.00013821,2]
[403086465,1769142638255,-1000.0,0.00013821,2]
[403086467,1769142638264,-1000.0,0.00013821,2]
[403086469,1769142638273,-1000.0,0.00013821,2]
[403086471,1769142638281,-1000.0,0.00013821,2]
[403086473,1769142638290,-1000.0,0.00013821,2]
[403086475,1769142638299,-1000.0,0.00013821,2]
[403086477,1769142638308,-1000.0,0.00013821,2]
[403086479,1769142638317,-1000.0,0.00013821,2]
[403086481,1769142638325,-1000.0,0.00013821,2]
[403086483,1769142638335,-1000.0,0.00013821,2]
[403086485,1769142638347,-1000.0,0.00013821,2]
[403086487,1769142638356,-1000.0,0.00013821,2]
[403086489,1769142638366,-1000.0,0.00013821,2]
[403086491,1769142638374,-1000.0,0.00013821,2]
[403086492,1769142638384,-577.18074356,0.00013821,2]
[403086494,1769142638393,-617.0,0.00013821,2]
[403086495,1769142638402,-42193.82819528,0.00013821,2]
[403086496,1769142638413,-240.7594859,0.00013892,2]
[403086497,1769142638422,-1191.02,0.00014048,2]
[403086498,1769142638431,-399.148798,0.00014246,2]
[403086499,1769142638440,-1000.0,0.00014247,2]
[403086500,1769142638449,-1000.0,0.00014247,2]
[403086501,1769142638459,-374.391,0.00014497,2]
[403086503,1769142638469,-179.04611193,0.00014497,2]
[403086504,1769142638479,-1000.0,0.000145,2]
[403086505,1769142638488,-1000.0,0.000145,2]
[403086506,1769142638497,-1000.0,0.000145,2]
[403086507,1769142638507,-1000.0,0.000145,2]
[403086508,1769142638516,-1000.0,0.000145,2]
[403086509,1769142638525,-1000.0,0.000145,2]
[403086510,1769142638534,-1000.0,0.000145,2]
[403086511,1769142638544,-500.0,0.00014502,2]
[403086512,1769142638553,-500.0,0.00014502,2]
[403086513,1769142638562,-1000000.0,0.00014698,2]
[403086514,1769142638572,-500.0,0.00014699,2]
[403086515,1769142638580,-500.0,0.00014795,2]
[403086516,1769142638589,-1500.0,0.00014795,2]
[403086517,1769142638598,-500.0,0.00014798,2]
[403086518,1769142638608,-500.0,0.00014798,2]
[403086519,1769142638619,-500.0,0.00014798,2]
[403086520,1769142638629,-234.17427926,0.00014798,2]
[403086521,1769142638638,-733.6,0.00014799,2]
[403086522,1769142638649,-733.6,0.00014799,2]
[403086523,1769142638659,-733.6,0.00014799,2]
[403086524,1769142638669,-733.6,0.00014799,2]
[403086525,1769142638679,-733.6,0.00014799,2]
[403086526,1769142638689,-733.6,0.00014799,2]
[403086527,1769142638698,-733.6,0.00014799,2]
[403086528,1769142638707,-733.6,0.00014799,2]
[403086529,1769142638717,-733.6,0.00014799,2]
[403086530,1769142638727,-733.6,0.00014799,2]
[403086531,1769142638736,-733.6,0.00014799,2]
[403086532,1769142638745,-733.6,0.00014799,2]
[403086533,1769142638754,-733.6,0.00014799,2]
[403086534,1769142638764,-733.6,0.00014799,2]
[403086535,1769142638773,-733.6,0.00014799,2]
[403086536,1769142638783,-733.6,0.00014799,2]
[403086537,1769142638792,-733.6,0.00014799,2]
[403086538,1769142638801,-733.6,0.00014799,2]
[403086539,1769142638810,-733.6,0.00014799,2]
[403086540,1769142638820,-733.6,0.00014799,2]
[403086541,1769142638829,-733.6,0.00014799,2]
[403086542,1769142638838,-733.6,0.00014799,2]
[403086543,1769142638847,-733.6,0.00014799,2]
[403086544,1769142638856,-733.6,0.00014799,2]
[403086545,1769142638867,-733.6,0.00014799,2]
[403086546,1769142638876,-733.6,0.00014799,2]
[403086547,1769142638886,-733.6,0.00014799,2]
[403086548,1769142638895,-733.6,0.00014799,2]
[403086549,1769142638904,-733.6,0.00014799,2]
[403086550,1769142638913,-733.6,0.00014799,2]
[403086551,1769142638922,-733.6,0.00014799,2]
[403086552,1769142638932,-733.6,0.00014799,2]
[403086553,1769142638941,-733.6,0.00014799,2]
[403086554,1769142638950,-733.6,0.00014799,2]
[403086555,1769142638961,-878.25,0.00014799,2]
[403086556,1769142638971,-151.0,0.000148,2]
[403086557,1769142638980,-151.0,0.000148,2]
[403086558,1769142638990,-151.0,0.000148,2]
[403086559,1769142638999,-151.0,0.000148,2]
[403086560,1769142639009,-151.0,0.000148,2]
[403086561,1769142639018,-151.0,0.000148,2]
[403086562,1769142639028,-151.0,0.000148,2]
[403086563,1769142639037,-151.0,0.000148,2]
[403086564,1769142639046,-151.0,0.000148,2]
[403086565,1769142639055,-5000.0,0.00015,2]
[403086566,1769142639064,-623.49245427,0.00015,2]
[403086567,1769142639073,-1488.77,0.00015052,2]
[403086568,1769142639082,-420.0,0.00015143,2]
[403086569,1769142639092,-2000.0,0.00015342,2]
[403086570,1769142639101,-565.97292049,0.000154,2]
[403086571,1769142639109,-5000.0,0.0001564,2]
[403086572,1769142639120,-282.58294627,0.00015821,2]
[403086573,1769142639129,-1786.52,0.00016055,2]
[403086574,1769142639138,-255.60385608,0.00016134,2]
[403086575,1769142639147,-2084.28,0.00017059,2]
[403086576,1769142639156,-151.0,0.00017503,2]
[403086577,1769142639165,-168.3888056,0.00017503,2]
[403086578,1769142639174,-174.61919141,0.00017503,2]
[403086579,1769142639183,-181.08010149,0.00017503,2]
[403086580,1769142639192,-187.78006525,0.00017503,2]
[403086581,1769142639202,-194.72792766,0.00017503,2]
[403086582,1769142639211,-201.93286099,0.00017503,2]
[403086583,1769142639220,-266.20254656,0.00017503,2]
[403086584,1769142639229,-500.0,0.0001764,2]
[403086585,1769142639239,-153.02359428,0.00017777,2]
[403086586,1769142639248,-153.01638257,0.00017777,2]
[403086587,1769142639257,-500.0,0.00017777,2]
[403086588,1769142639267,-325.68881943,0.00017821,2]
[403086589,1769142639276,-178.0,0.00017837,2]
[403086590,1769142639285,-417.0,0.00017837,2]
[403086591,1769142639294,-436.0,0.00017914,2]
[403086592,1769142639303,-4348.81663534,0.00018,2]
[403086593,1769142639312,-213.80173036,0.00018051,2]
[403086594,1769142639321,-2382.03,0.00018062,2]
[403086595,1769142639331,-2679.78,0.00019066,2]
[403086596,1769142639340,-269.42067943,0.00019101,3]
[403086597,1769142639354,-276.56,0.00019178,2]
[403086598,1769142639363,-2702.39,0.00019178,2]
[403086599,1769142639372,-1136.12,0.000192,2]
[403086600,1769142639381,-368.79469259,0.00019821,2]
[403086601,1769142639391,-2000.0,0.0002,7]
[403086602,1769142639399,-1019.08728764,0.0002,2]
[403086603,1769142639408,-502845.90869143,0.0002,2]
[403086604,1769142639418,-2977.54,0.00020069,2]
[403086605,1769142639428,-2000.0,0.000205,7]
[403086606,1769142639438,-782.921521,0.00020548,2]
[403086607,1769142639447,-1041.66666667,0.00020732,2]
[403086608,1769142639457,-178.0,0.00020837,2]
[403086609,1769142639467,-417.0,0.00020837,2]
[403086610,1769142639476,-3614.29,0.000209,2]
[403086611,1769142639485,-2000.0,0.00021,7]
[403086612,1769142639495,-2000.0,0.000215,7]
[403086613,1769142639504,-411.90056575,0.00021821,2]
[403086614,1769142639513,-162.0,0.0002194,120]
[403086615,1769142639523,-2000.0,0.00022,7]
[403086616,1769142639533,-164.0,0.00022,2]
[403086617,1769142639542,-2702.39,0.00022465,4]
[403086618,1769142639551,-2000.0,0.000225,7]
[403086619,1769142639560,-2000.0,0.00023,7]
[403086620,1769142639572,-164.0,0.00023014,7]
[403086621,1769142639583,-162.0,0.00023037,120]
[403086622,1769142639595,-6250.5679038,0.00023405,2]
[403086623,1769142639607,-1469.0285873,0.00023422,2]
[403086624,1769142639618,-2000.0,0.000235,7]
[403086625,1769142639630,-756.1970526,0.00023534,2]
[403086626,1769142639641,-455.00643891,0.00023821,2]
[403086627,1769142639652,-178.0,0.00023837,2]
[403086628,1769142639661,-151.0,0.00023949,2]
[403086629,1769142639672,-124903.45120265,0.00023998,2]
[403086630,1769142639682,-2000.0,0.00024,7]
[403086631,1769142639694,-130.22158683,0.00024,7]
[403086632,1769142639704,-634.09,0.00024,7]
[403086633,1769142639715,-1500.0,0.00024,2]
[403086634,1769142639725,-366.63793955,0.00024,7]
[403086635,1769142639736,-634.89292711,0.00024,3]
[403086636,1769142639747,-1041.66666667,0.00024,7]
[403086637,1769142639758,-187.4437198,0.00024037,94]
[403086638,1769142639769,-475.0,0.00024042,30]
[403086639,1769142639780,-475.0,0.00024042,30]
[403086640,1769142639791,-475.0,0.00024042,30]
[403086641,1769142639802,-475.0,0.00024042,30]
[403086642,1769142639814,-475.0,0.00024042,30]
[403086643,1769142639825,-1020.94,0.000241,4]
[403086644,1769142639837,-424485.92016605,0.00024142,2]
[403086645,1769142639854,-5705.5917599,0.00024142,2]
[403086663,1769142640378,-916.98,0.00024142,2]
[403086664,1769142640391,-999.3076169,0.00024142,2]
[403086665,1769142640601,-3e-08,0.00024142,2]
[403086666,1769142643542,-908.51,0.00024142,2]
[403086677,1769142646220,-11611.59116229,0.00024142,2]
[403086679,1769142663852,496.5541695,0.00013273,2]
[403086680,1769142664167,500.0,0.00013699,2]
[403086682,1769142728132,300.0,0.00013273,2]
[403086683,1769142728161,502.16698381,0.00013273,2]
[403086693,1769142946415,176.56,0.0001382,2]
[403086701,1769143308141,2244.56750635,0.00013699,2]
[403086702,1769143308165,706.10426265,0.00013699,2]
[403086703,1769143324127,5659.4913296,0.00013619,2]
[403086704,1769143348855,3634.41440775,0.0001382,2]